Workbook

Sheet Raw Data
A1: 496 | H1: 496
A2: 542 | B2: 783 | C2: 640 | D2: 482 | E2: 450 | G2: BM1 | H2: 542 | I2: 783 | J2: 640 | K2: 482 | L2: 450
A3: 443 | B3: 514 | C3: 476 | D3: 394 | E3: 291 | G3: BM2 | H3: 443 | I3: 514 | J3: 476 | K3: 394 | L3: 291
A4: 442 | B4: 522 | C4: 430 | D4: 507 | E4: 473 | G4: BM3 | H4: 442 | I4: 522 | J4: 430 | K4: 507 | L4: 473
G5: BM4
A6: 1046 | B6: 552 | C6: 711 | D6: 760 | E6: 904 | G6: BM5 | H6: 1046 | I6: 552 | J6: 711 | K6: 760 | L6: 904
G7: BM6
A8: 391 | B8: 649 | C8: 462 | D8: 669 | E8: 676 | G8: BM7 | H8: 391 | I8: 649 | J8: 462 | K8: 669 | L8: 676
A9: 776 | B9: 698 | C9: 755 | D9: 747 | E9: 707 | G9: BM8 | H9: 776 | I9: 698 | J9: 755 | K9: 747 | L9: 707
A10: 415 | B10: 367 | C10: 682 | D10: 524 | E10: 467 | G10: BM9 | H10: 415 | I10: 367 | J10: 682 | K10: 524 | L10: 467
A11: 445 | B11: 416 | C11: 345 | D11: 418 | E11: 529 | G11: BM10 | H11: 445 | I11: 416 | J11: 345 | K11: 418 | L11: 529
A12: 529 | H12: 529
A13: 472 | B13: 226 | C13: 211 | D13: 804 | E13: 1071 | G13: BM1 | H13: 472 | I13: 226 | J13: 211 | K13: 804 | L13: 1071
A14: 621 | B14: 1648 | C14: 427 | D14: 266 | E14: 184 | G14: BM2 | H14: 621 | I14: 1648 | J14: 427 | K14: 266 | L14: 184
A15: 122 | B15: 110 | C15: 20 | D15: 156 | E15: 315 | G15: BM3 | H15: 122 | I15: 110 | J15: 20 | K15: 156 | L15: 315
G16: BM4
A17: 425 | B17: 19 | C17: 303 | D17: 105 | E17: 205 | G17: BM5 | H17: 425 | I17: 19 | J17: 303 | K17: 105 | L17: 205
A18: 1241 | B18: 573 | C18: 737 | D18: 1154 | E18: 1245 | G18: BM6 | H18: 1241 | I18: 573 | J18: 737 | K18: 1154 | L18: 1245
A19: 140 | B19: 49 | C19: 9 | D19: 92 | E19: 84 | G19: BM7 | H19: 140 | I19: 49 | J19: 9 | K19: 92 | L19: 84
A20: 638 | B20: 1719 | C20: 1313 | D20: 564 | E20: 273 | G20: BM8 | H20: 638 | I20: 1719 | J20: 1313 | K20: 564 | L20: 273
A21: 549 | B21: 101 | C21: 1440 | D21: 1233 | E21: 1055 | G21: BM9 | H21: 549 | I21: 101 | J21: 1440 | K21: 1233 | L21: 1055
A22: 292 | B22: 56 | C22: 44 | D22: 127 | E22: 65 | G22: BM10 | H22: 292 | I22: 56 | J22: 44 | K22: 127 | L22: 65
A23: 521 | H23: 521
A24: 85 | B24: 211 | C24: 227 | D24: 179 | E24: 297 | G24: BM1 | H24: 85 | I24: 211 | J24: 227 | K24: 179 | L24: 297
A25: 1081 | B25: 602 | C25: 581 | D25: 1142 | E25: 686 | G25: BM2 | H25: 1081 | I25: 602 | J25: 581 | K25: 1142 | L25: 686
A26: 251 | B26: 231 | C26: 385 | D26: 251 | E26: 368 | G26: BM3 | H26: 251 | I26: 231 | J26: 385 | K26: 251 | L26: 368
G27: BM4
A28: 940 | B28: 612 | C28: 554 | D28: 436 | E28: 563 | G28: BM5 | H28: 940 | I28: 612 | J28: 554 | K28: 436 | L28: 563
A29: 454 | B29: 740 | C29: 714 | D29: 758 | E29: 962 | G29: BM6 | H29: 454 | I29: 740 | J29: 714 | K29: 758 | L29: 962
A30: 107 | B30: 161 | C30: 180 | D30: 117 | E30: 50 | G30: BM7 | H30: 107 | I30: 161 | J30: 180 | K30: 117 | L30: 50
A31: 791 | B31: 970 | C31: 797 | D31: 985 | E31: 863 | G31: BM8 | H31: 791 | I31: 970 | J31: 797 | K31: 985 | L31: 863
A32: 631 | B32: 809 | C32: 823 | D32: 488 | E32: 652 | G32: BM9 | H32: 631 | I32: 809 | J32: 823 | K32: 488 | L32: 652
A33: 160 | B33: 155 | C33: 239 | D33: 145 | E33: 56 | G33: BM10 | H33: 160 | I33: 155 | J33: 239 | K33: 145 | L33: 56
A34: 524 | H34: 524
A35: 361 | B35: 344 | C35: 117 | D35: 197 | E35: 109 | G35: BM1 | H35: 361 | I35: 344 | J35: 117 | K35: 197 | L35: 109
A36: 403 | B36: 135 | C36: 428 | D36: 354 | E36: 317 | G36: BM2 | H36: 403 | I36: 135 | J36: 428 | K36: 354 | L36: 317
A37: 355 | B37: 155 | C37: 54 | D37: 225 | E37: 38 | G37: BM3 | H37: 355 | I37: 155 | J37: 54 | K37: 225 | L37: 38
G38: BM4
A39: 536 | B39: 641 | C39: 1078 | D39: 932 | E39: 1212 | G39: BM5 | H39: 536 | I39: 641 | J39: 1078 | K39: 932 | L39: 1212
A40: 736 | B40: 1181 | C40: 785 | D40: 882 | E40: 629 | G40: BM6 | H40: 736 | I40: 1181 | J40: 785 | K40: 882 | L40: 629
A41: 275 | B41: 101 | C41: 56 | D41: 85 | E41: 61 | G41: BM7 | H41: 275 | I41: 101 | J41: 56 | K41: 85 | L41: 61
A42: 294 | B42: 569 | C42: 657 | D42: 558 | E42: 852 | G42: BM8 | H42: 294 | I42: 569 | J42: 657 | K42: 558 | L42: 852
A43: 665 | B43: 1259 | C43: 1326 | D43: 1236 | E43: 1279 | G43: BM9 | H43: 665 | I43: 1259 | J43: 1326 | K43: 1236 | L43: 1279
A44: 875 | B44: 116 | C44: 0 | D44: 32 | E44: 0 | G44: BM10 | H44: 875 | I44: 116 | J44: 0 | K44: 32 | L44: 0
A45: 517 | H45: 517
A46: 165 | B46: 524 | C46: 378 | D46: 403 | E46: 358 | G46: BM1 | H46: 165 | I46: 524 | J46: 378 | K46: 403 | L46: 358
A47: 746 | B47: 512 | C47: 580 | D47: 873 | E47: 589 | G47: BM2 | H47: 746 | I47: 512 | J47: 580 | K47: 873 | L47: 589
A48: 356 | B48: 463 | C48: 380 | D48: 732 | E48: 526 | G48: BM3 | H48: 356 | I48: 463 | J48: 380 | K48: 732 | L48: 526
G49: BM4
A50: 491 | B50: 310 | C50: 380 | D50: 121 | E50: 331 | G50: BM5 | H50: 491 | I50: 310 | J50: 380 | K50: 121 | L50: 331
A51: 497 | B51: 575 | C51: 961 | D51: 719 | E51: 628 | G51: BM6 | H51: 497 | I51: 575 | J51: 961 | K51: 719 | L51: 628
A52: 235 | B52: 251 | C52: 69 | D52: 196 | E52: 160 | G52: BM7 | H52: 235 | I52: 251 | J52: 69 | K52: 196 | L52: 160
A53: 1345 | B53: 737 | C53: 751 | D53: 649 | E53: 892 | G53: BM8 | H53: 1345 | I53: 737 | J53: 751 | K53: 649 | L53: 892
A54: 311 | B54: 830 | C54: 992 | D54: 688 | E54: 867 | G54: BM9 | H54: 311 | I54: 830 | J54: 992 | K54: 688 | L54: 867
A55: 354 | B55: 299 | C55: 10 | D55: 120 | E55: 146 | G55: BM10 | H55: 354 | I55: 299 | J55: 10 | K55: 120 | L55: 146
A56: 522 | H56: 522
A57: 566 | B57: 787 | C57: 888 | D57: 680 | E57: 771 | G57: BM1 | H57: 566 | I57: 787 | J57: 888 | K57: 680 | L57: 771
A58: 313 | B58: 545 | C58: 295 | D58: 277 | E58: 297 | G58: BM2 | H58: 313 | I58: 545 | J58: 295 | K58: 277 | L58: 297
A59: 375 | B59: 509 | C59: 938 | D59: 1043 | E59: 667 | G59: BM3 | H59: 375 | I59: 509 | J59: 938 | K59: 1043 | L59: 667
G60: BM4
A61: 773 | B61: 321 | C61: 394 | D61: 311 | E61: 361 | G61: BM5 | H61: 773 | I61: 321 | J61: 394 | K61: 311 | L61: 361
G62: BM6
A63: 609 | B63: 646 | C63: 688 | D63: 985 | E63: 959 | G63: BM7 | H63: 609 | I63: 646 | J63: 688 | K63: 985 | L63: 959
A64: 647 | B64: 550 | C64: 430 | D64: 401 | E64: 630 | G64: BM8 | H64: 647 | I64: 550 | J64: 430 | K64: 401 | L64: 630
A65: 779 | B65: 927 | C65: 786 | D65: 666 | E65: 664 | G65: BM9 | H65: 779 | I65: 927 | J65: 786 | K65: 666 | L65: 664
A66: 438 | B66: 216 | C66: 82 | D66: 138 | E66: 148 | G66: BM10 | H66: 438 | I66: 216 | J66: 82 | K66: 138 | L66: 148
A67: 534 | H67: 534
A68: 208 | B68: 189 | C68: 55 | D68: 55 | E68: 187 | G68: BM1 | H68: 208 | I68: 189 | J68: 55 | K68: 55 | L68: 187
A69: 190 | B69: 814 | C69: 449 | D69: 519 | E69: 540 | G69: BM2 | H69: 190 | I69: 814 | J69: 449 | K69: 519 | L69: 540
A70: 214 | B70: 112 | C70: 60 | D70: 0 | E70: 100 | G70: BM3 | H70: 214 | I70: 112 | J70: 60 | K70: 0 | L70: 100
G71: BM4
A72: 1497 | B72: 748 | C72: 1477 | D72: 1526 | E72: 960 | G72: BM5 | H72: 1497 | I72: 748 | J72: 1477 | K72: 1526 | L72: 960
A73: 799 | B73: 901 | C73: 870 | D73: 606 | E73: 1105 | G73: BM6 | H73: 799 | I73: 901 | J73: 870 | K73: 606 | L73: 1105
A74: 663 | B74: 257 | C74: 25 | D74: 0 | E74: 169 | G74: BM7 | H74: 663 | I74: 257 | J74: 25 | K74: 0 | L74: 169
A75: 238 | B75: 505 | C75: 394 | D75: 521 | E75: 311 | G75: BM8 | H75: 238 | I75: 505 | J75: 394 | K75: 521 | L75: 311
A76: 374 | B76: 894 | C76: 1171 | D76: 1274 | E76: 1123 | G76: BM9 | H76: 374 | I76: 894 | J76: 1171 | K76: 1274 | L76: 1123
A77: 317 | B77: 81 | C77: 0 | D77: 0 | E77: 9 | G77: BM10 | H77: 317 | I77: 81 | J77: 0 | K77: 0 | L77: 9
A78: 528 | H78: 528
A79: 629 | B79: 350 | C79: 524 | D79: 761 | E79: 592 | G79: BM1 | H79: 629 | I79: 350 | J79: 524 | K79: 761 | L79: 592
A80: 466 | B80: 81 | C80: 169 | D80: 227 | E80: 116 | G80: BM2 | H80: 466 | I80: 81 | J80: 169 | K80: 227 | L80: 116
A81: 302 | B81: 290 | C81: 512 | D81: 759 | E81: 768 | G81: BM3 | H81: 302 | I81: 290 | J81: 512 | K81: 759 | L81: 768
G82: BM4
A83: 200 | B83: 394 | C83: 321 | D83: 157 | E83: 347 | G83: BM5 | H83: 200 | I83: 394 | J83: 321 | K83: 157 | L83: 347
A84: 1421 | B84: 972 | C84: 1254 | D84: 1341 | E84: 1349 | G84: BM6 | H84: 1421 | I84: 972 | J84: 1254 | K84: 1341 | L84: 1349
A85: 266 | B85: 262 | C85: 172 | D85: 309 | E85: 228 | G85: BM7 | H85: 266 | I85: 262 | J85: 172 | K85: 309 | L85: 228
A86: 782 | B86: 1312 | C86: 848 | D86: 395 | E86: 742 | G86: BM8 | H86: 782 | I86: 1312 | J86: 848 | K86: 395 | L86: 742
A87: 186 | B87: 581 | C87: 545 | D87: 405 | E87: 329 | G87: BM9 | H87: 186 | I87: 581 | J87: 545 | K87: 405 | L87: 329
A88: 248 | B88: 259 | C88: 156 | D88: 147 | E88: 26 | G88: BM10 | H88: 248 | I88: 259 | J88: 156 | K88: 147 | L88: 26
A89: 578 | H89: 578
A90: 168 | B90: 410 | C90: 419 | D90: 495 | E90: 439 | G90: BM1 | H90: 168 | I90: 410 | J90: 419 | K90: 495 | L90: 439
A91: 302 | B91: 456 | C91: 561 | D91: 723 | E91: 359 | G91: BM2 | H91: 302 | I91: 456 | J91: 561 | K91: 723 | L91: 359
A92: 211 | B92: 264 | C92: 245 | D92: 445 | E92: 460 | G92: BM3 | H92: 211 | I92: 264 | J92: 245 | K92: 445 | L92: 460
A93: 0 | B93: 0 | C93: 0 | D93: 0 | E93: 0 | G93: BM4 | H93: 0 | I93: 0 | J93: 0 | K93: 0 | L93: 0
A94: 1666 | B94: 1037 | C94: 961 | D94: 493 | E94: 848 | G94: BM5 | H94: 1666 | I94: 1037 | J94: 961 | K94: 493 | L94: 848
A95: 650 | B95: 631 | C95: 687 | D95: 752 | E95: 1024 | G95: BM6 | H95: 650 | I95: 631 | J95: 687 | K95: 752 | L95: 1024
A96: 293 | B96: 277 | C96: 320 | D96: 566 | E96: 325 | G96: BM7 | H96: 293 | I96: 277 | J96: 320 | K96: 566 | L96: 325
A97: 532 | B97: 528 | C97: 521 | D97: 432 | E97: 570 | G97: BM8 | H97: 532 | I97: 528 | J97: 521 | K97: 432 | L97: 570
A98: 413 | B98: 520 | C98: 591 | D98: 233 | E98: 289 | G98: BM9 | H98: 413 | I98: 520 | J98: 591 | K98: 233 | L98: 289
A99: 265 | B99: 378 | C99: 196 | D99: 362 | E99: 183 | G99: BM10 | H99: 265 | I99: 378 | J99: 196 | K99: 362 | L99: 183
A100: 533 | H100: 533
A101: 163 | B101: 292 | C101: 192 | D101: 302 | E101: 530 | G101: BM1 | H101: 163 | I101: 292 | J101: 192 | K101: 302 | L101: 530
A102: 889 | B102: 731 | C102: 753 | D102: 752 | E102: 609 | G102: BM2 | H102: 889 | I102: 731 | J102: 753 | K102: 752 | L102: 609
A103: 170 | B103: 188 | C103: 200 | D103: 291 | E103: 334 | G103: BM3 | H103: 170 | I103: 188 | J103: 200 | K103: 291 | L103: 334
A104: 0 | B104: 51 | C104: 0 | D104: 11 | E104: 9 | G104: BM4 | H104: 0 | I104: 51 | J104: 0 | K104: 11 | L104: 9
A105: 1104 | B105: 1090 | C105: 1063 | D105: 865 | E105: 938 | G105: BM5 | H105: 1104 | I105: 1090 | J105: 1063 | K105: 865 | L105: 938
A106: 409 | B106: 614 | C106: 748 | D106: 872 | E106: 725 | G106: BM6 | H106: 409 | I106: 614 | J106: 748 | K106: 872 | L106: 725
A107: 161 | B107: 105 | C107: 241 | D107: 213 | E107: 221 | G107: BM7 | H107: 161 | I107: 105 | J107: 241 | K107: 213 | L107: 221
A108: 857 | B108: 734 | C108: 482 | D108: 429 | E108: 486 | G108: BM8 | H108: 857 | I108: 734 | J108: 482 | K108: 429 | L108: 486
A109: 387 | B109: 438 | C109: 596 | D109: 628 | E109: 520 | G109: BM9 | H109: 387 | I109: 438 | J109: 596 | K109: 628 | L109: 520
A110: 360 | B110: 258 | C110: 226 | D110: 138 | E110: 129 | G110: BM10 | H110: 360 | I110: 258 | J110: 226 | K110: 138 | L110: 129
A111: 527 | H111: 527
A112: 205 | B112: 460 | C112: 173 | D112: 238 | E112: 377 | G112: BM1 | H112: 205 | I112: 460 | J112: 173 | K112: 238 | L112: 377
A113: 1237 | B113: 1467 | C113: 1150 | D113: 719 | E113: 1427 | G113: BM2 | H113: 1237 | I113: 1467 | J113: 1150 | K113: 719 | L113: 1427
A114: 119 | B114: 225 | C114: 25 | D114: 183 | E114: 183 | G114: BM3 | H114: 119 | I114: 225 | J114: 25 | K114: 183 | L114: 183
A115: 0 | B115: 0 | C115: 0 | D115: 0 | E115: 0 | G115: BM4 | H115: 0 | I115: 0 | J115: 0 | K115: 0 | L115: 0
A116: 294 | B116: 89 | C116: 319 | D116: 218 | E116: 129 | G116: BM5 | H116: 294 | I116: 89 | J116: 319 | K116: 218 | L116: 129
A117: 283 | B117: 348 | C117: 355 | D117: 353 | E117: 377 | G117: BM6 | H117: 283 | I117: 348 | J117: 355 | K117: 353 | L117: 377
A118: 214 | B118: 158 | C118: 13 | D118: 223 | E118: 142 | G118: BM7 | H118: 214 | I118: 158 | J118: 13 | K118: 223 | L118: 142
A119: 1052 | B119: 907 | C119: 1025 | D119: 987 | E119: 626 | G119: BM8 | H119: 1052 | I119: 907 | J119: 1025 | K119: 987 | L119: 626
A120: 880 | B120: 757 | C120: 1409 | D120: 1493 | E120: 1101 | G120: BM9 | H120: 880 | I120: 757 | J120: 1409 | K120: 1493 | L120: 1101
A121: 216 | B121: 90 | C121: 32 | D121: 87 | E121: 135 | G121: BM10 | H121: 216 | I121: 90 | J121: 32 | K121: 87 | L121: 135
A122: 63 | H122: 63
A123: 593 | B123: 99 | C123: 126 | D123: 272 | E123: 251 | G123: BM1 | H123: 593 | I123: 99 | J123: 126 | K123: 272 | L123: 251
A124: 110 | B124: 20 | C124: 633 | D124: 354 | E124: 616 | G124: BM2 | H124: 110 | I124: 20 | J124: 633 | K124: 354 | L124: 616
A125: 575 | B125: 141 | C125: 83 | D125: 488 | E125: 349 | G125: BM3 | H125: 575 | I125: 141 | J125: 83 | K125: 488 | L125: 349
G126: BM4
A127: 284 | B127: 149 | C127: 181 | D127: 286 | E127: 164 | G127: BM5 | H127: 284 | I127: 149 | J127: 181 | K127: 286 | L127: 164
A128: 914 | B128: 442 | C128: 901 | D128: 678 | E128: 806 | G128: BM6 | H128: 914 | I128: 442 | J128: 901 | K128: 678 | L128: 806
A129: 186 | B129: 9 | C129: 35 | D129: 329 | E129: 115 | G129: BM7 | H129: 186 | I129: 9 | J129: 35 | K129: 329 | L129: 115
A130: 768 | B130: 1507 | C130: 1660 | D130: 791 | E130: 1205 | G130: BM8 | H130: 768 | I130: 1507 | J130: 1660 | K130: 791 | L130: 1205
A131: 797 | B131: 2133 | C131: 858 | D131: 1138 | E131: 915 | G131: BM9 | H131: 797 | I131: 2133 | J131: 858 | K131: 1138 | L131: 915
A132: 273 | B132: 9 | C132: 24 | D132: 165 | E132: 76 | G132: BM10 | H132: 273 | I132: 9 | J132: 24 | K132: 165 | L132: 76
A133: 64 | H133: 64
A134: 231 | B134: 173 | C134: 395 | D134: 486 | E134: 470 | G134: BM1 | H134: 231 | I134: 173 | J134: 395 | K134: 486 | L134: 470
A135: 446 | B135: 109 | C135: 269 | D135: 191 | E135: 241 | G135: BM2 | H135: 446 | I135: 109 | J135: 269 | K135: 191 | L135: 241
A136: 270 | B136: 83 | C136: 118 | D136: 403 | E136: 285 | G136: BM3 | H136: 270 | I136: 83 | J136: 118 | K136: 403 | L136: 285
G137: BM4
A138: 758 | B138: 585 | C138: 870 | D138: 656 | E138: 542 | G138: BM5 | H138: 758 | I138: 585 | J138: 870 | K138: 656 | L138: 542
A139: 651 | B139: 417 | C139: 477 | D139: 753 | E139: 678 | G139: BM6 | H139: 651 | I139: 417 | J139: 477 | K139: 753 | L139: 678
A140: 360 | B140: 33 | C140: 66 | D140: 162 | E140: 286 | G140: BM7 | H140: 360 | I140: 33 | J140: 66 | K140: 162 | L140: 286
A141: 378 | B141: 658 | C141: 564 | D141: 427 | E141: 519 | G141: BM8 | H141: 378 | I141: 658 | J141: 564 | K141: 427 | L141: 519
A142: 961 | B142: 2376 | C142: 1597 | D142: 1253 | E142: 1299 | G142: BM9 | H142: 961 | I142: 2376 | J142: 1597 | K142: 1253 | L142: 1299
A143: 445 | B143: 67 | C143: 145 | D143: 170 | E143: 177 | G143: BM10 | H143: 445 | I143: 67 | J143: 145 | K143: 170 | L143: 177
A144: 909 | H144: 909
A145: 818 | B145: 215 | C145: 181 | D145: 264 | E145: 332 | G145: BM1 | H145: 818 | I145: 215 | J145: 181 | K145: 264 | L145: 332
A146: 389 | B146: 994 | C146: 739 | D146: 1491 | E146: 1099 | G146: BM2 | H146: 389 | I146: 994 | J146: 739 | K146: 1491 | L146: 1099
A147: 423 | B147: 70 | C147: 134 | D147: 198 | E147: 109 | G147: BM3 | H147: 423 | I147: 70 | J147: 134 | K147: 198 | L147: 109
G148: BM4
A149: 70 | B149: 118 | C149: 363 | D149: 35 | E149: 293 | G149: BM5 | H149: 70 | I149: 118 | J149: 363 | K149: 35 | L149: 293
A150: 1014 | B150: 488 | C150: 398 | D150: 777 | E150: 678 | G150: BM6 | H150: 1014 | I150: 488 | J150: 398 | K150: 777 | L150: 678
A151: 496 | B151: 79 | C151: 61 | D151: 166 | E151: 58 | G151: BM7 | H151: 496 | I151: 79 | J151: 61 | K151: 166 | L151: 58
A152: 537 | B152: 1868 | C152: 1585 | D152: 1166 | E152: 1272 | G152: BM8 | H152: 537 | I152: 1868 | J152: 1585 | K152: 1166 | L152: 1272
A153: 530 | B153: 623 | C153: 963 | D153: 196 | E153: 577 | G153: BM9 | H153: 530 | I153: 623 | J153: 963 | K153: 196 | L153: 577
A154: 223 | B154: 46 | C154: 77 | D154: 208 | E154: 79 | G154: BM10 | H154: 223 | I154: 46 | J154: 77 | K154: 208 | L154: 79
A155: 162 | H155: 162
A156: 1361 | B156: 161 | C156: 754 | D156: 208 | E156: 184 | G156: BM1 | H156: 1361 | I156: 161 | J156: 754 | K156: 208 | L156: 184
A157: 97 | B157: 9 | C157: 281 | D157: 269 | E157: 369 | G157: BM2 | H157: 97 | I157: 9 | J157: 281 | K157: 269 | L157: 369
A158: 589 | B158: 9 | C158: 214 | D158: 31 | E158: 80 | G158: BM3 | H158: 589 | I158: 9 | J158: 214 | K158: 31 | L158: 80
G159: BM4
A160: 253 | B160: 211 | C160: 933 | D160: 757 | E160: 835 | G160: BM5 | H160: 253 | I160: 211 | J160: 933 | K160: 757 | L160: 835
A161: 754 | B161: 985 | C161: 453 | D161: 680 | E161: 606 | G161: BM6 | H161: 754 | I161: 985 | J161: 453 | K161: 680 | L161: 606
A162: 267 | B162: 0 | C162: 348 | D162: 26 | E162: 9 | G162: BM7 | H162: 267 | I162: 0 | J162: 348 | K162: 26 | L162: 9
A163: 384 | B163: 834 | C163: 499 | D163: 1535 | E163: 1396 | G163: BM8 | H163: 384 | I163: 834 | J163: 499 | K163: 1535 | L163: 1396
A164: 522 | B164: 2300 | C164: 406 | D164: 980 | E164: 1005 | G164: BM9 | H164: 522 | I164: 2300 | J164: 406 | K164: 980 | L164: 1005
A165: 273 | B165: 0 | C165: 613 | D165: 15 | E165: 15 | G165: BM10 | H165: 273 | I165: 0 | J165: 613 | K165: 15 | L165: 15
A166: 294 | H166: 294
A167: 485 | B167: 361 | C167: 483 | D167: 440 | E167: 613 | G167: BM1 | H167: 485 | I167: 361 | J167: 483 | K167: 440 | L167: 613
G168: BM2
A169: 324 | B169: 322 | C169: 323 | D169: 293 | E169: 522 | G169: BM3 | H169: 324 | I169: 322 | J169: 323 | K169: 293 | L169: 522
G170: BM4
A171: 434 | B171: 620 | C171: 629 | D171: 483 | E171: 528 | G171: BM5 | H171: 434 | I171: 620 | J171: 629 | K171: 483 | L171: 528
A172: 1047 | B172: 661 | C172: 788 | D172: 847 | E172: 817 | G172: BM6 | H172: 1047 | I172: 661 | J172: 788 | K172: 847 | L172: 817
A173: 335 | B173: 410 | C173: 208 | D173: 355 | E173: 396 | G173: BM7 | H173: 335 | I173: 410 | J173: 208 | K173: 355 | L173: 396
A174: 532 | B174: 725 | C174: 583 | D174: 589 | E174: 523 | G174: BM8 | H174: 532 | I174: 725 | J174: 583 | K174: 589 | L174: 523
A175: 929 | B175: 1014 | C175: 1332 | D175: 1168 | E175: 924 | G175: BM9 | H175: 929 | I175: 1014 | J175: 1332 | K175: 1168 | L175: 924
A176: 414 | B176: 388 | C176: 155 | D176: 326 | E176: 174 | G176: BM10 | H176: 414 | I176: 388 | J176: 155 | K176: 326 | L176: 174
A177: 351 | H177: 351
A178: 481 | B178: 316 | C178: 523 | D178: 488 | E178: 757 | G178: BM1 | H178: 481 | I178: 316 | J178: 523 | K178: 488 | L178: 757
A179: 800 | B179: 300 | C179: 603 | D179: 586 | E179: 232 | G179: BM2 | H179: 800 | I179: 300 | J179: 603 | K179: 586 | L179: 232
A180: 290 | B180: 273 | C180: 245 | D180: 282 | E180: 448 | G180: BM3 | H180: 290 | I180: 273 | J180: 245 | K180: 282 | L180: 448
G181: BM4
A182: 437 | B182: 550 | C182: 446 | D182: 471 | E182: 275 | G182: BM5 | H182: 437 | I182: 550 | J182: 446 | K182: 471 | L182: 275
A183: 995 | B183: 897 | C183: 874 | D183: 900 | E183: 1069 | G183: BM6 | H183: 995 | I183: 897 | J183: 874 | K183: 900 | L183: 1069
A184: 201 | B184: 36 | C184: 44 | D184: 174 | E184: 260 | G184: BM7 | H184: 201 | I184: 36 | J184: 44 | K184: 174 | L184: 260
A185: 291 | B185: 126 | C185: 361 | D185: 285 | E185: 101 | G185: BM8 | H185: 291 | I185: 126 | J185: 361 | K185: 285 | L185: 101
A186: 738 | B186: 1960 | C186: 1378 | D186: 1151 | E186: 1218 | G186: BM9 | H186: 738 | I186: 1960 | J186: 1378 | K186: 1151 | L186: 1218
A187: 267 | B187: 43 | C187: 27 | D187: 164 | E187: 137 | G187: BM10 | H187: 267 | I187: 43 | J187: 27 | K187: 164 | L187: 137
A188: 513 | H188: 513
A189: 358 | B189: 268 | C189: 184 | D189: 273 | E189: 326 | G189: BM1 | H189: 358 | I189: 268 | J189: 184 | K189: 273 | L189: 326
A190: 286 | B190: 532 | C190: 539 | D190: 395 | E190: 281 | G190: BM2 | H190: 286 | I190: 532 | J190: 539 | K190: 395 | L190: 281
A191: 177 | B191: 416 | C191: 339 | D191: 757 | E191: 508 | G191: BM3 | H191: 177 | I191: 416 | J191: 339 | K191: 757 | L191: 508
G192: BM4
A193: 1167 | B193: 536 | C193: 977 | D193: 333 | E193: 604 | G193: BM5 | H193: 1167 | I193: 536 | J193: 977 | K193: 333 | L193: 604
A194: 369 | B194: 465 | C194: 422 | D194: 659 | E194: 320 | G194: BM6 | H194: 369 | I194: 465 | J194: 422 | K194: 659 | L194: 320
A195: 257 | B195: 567 | C195: 308 | D195: 734 | E195: 565 | G195: BM7 | H195: 257 | I195: 567 | J195: 308 | K195: 734 | L195: 565
A196: 982 | B196: 469 | C196: 1013 | D196: 447 | E196: 460 | G196: BM8 | H196: 982 | I196: 469 | J196: 1013 | K196: 447 | L196: 460
A197: 446 | B197: 509 | C197: 573 | D197: 487 | E197: 444 | G197: BM9 | H197: 446 | I197: 509 | J197: 573 | K197: 487 | L197: 444
A198: 458 | B198: 739 | C198: 146 | D198: 416 | E198: 989 | G198: BM10 | H198: 458 | I198: 739 | J198: 146 | K198: 416 | L198: 989
A199: 530 | H199: 530
A200: 763 | B200: 596 | C200: 252 | D200: 682 | E200: 501 | G200: BM1 | H200: 763 | I200: 596 | J200: 252 | K200: 682 | L200: 501
... 196 more rows

Sheet Calculated DF-F
A1: BM1 | B1: OF | C1: SHAM | D1: T1 | E1: T2 | F1: T3 | G1: Average
A2: 496 | B2: ='Raw Data'!H2 -> 542 | C2: ='Raw Data'!I2 -> 783 | D2: ='Raw Data'!J2 -> 640 | E2: ='Raw Data'!K2 -> 482 | F2: ='Raw Data'!L2 -> 450 | G2: =AVERAGE(D2:F2) -> 524 | H2: F
A3: 529 | B3: ='Raw Data'!H13 -> 472 | C3: ='Raw Data'!I13 -> 226 | D3: ='Raw Data'!J13 -> 211 | E3: ='Raw Data'!K13 -> 804 | F3: ='Raw Data'!L13 -> 1071 | G3: =AVERAGE(D3:F3) -> 695.3333333 | H3: F
A4: 521 | B4: ='Raw Data'!H24 -> 85 | C4: ='Raw Data'!I24 -> 211 | D4: ='Raw Data'!J24 -> 227 | E4: ='Raw Data'!K24 -> 179 | F4: ='Raw Data'!L24 -> 297 | G4: 234.3333333 | H4: F
A5: 524 | B5: ='Raw Data'!H35 -> 361 | C5: ='Raw Data'!I35 -> 344 | D5: ='Raw Data'!J35 -> 117 | E5: ='Raw Data'!K35 -> 197 | F5: ='Raw Data'!L35 -> 109 | G5: 141 | H5: F
A6: 517 | B6: ='Raw Data'!H46 -> 165 | C6: ='Raw Data'!I46 -> 524 | D6: ='Raw Data'!J46 -> 378 | E6: ='Raw Data'!K46 -> 403 | F6: ='Raw Data'!L46 -> 358 | G6: 379.6666667 | H6: F
A7: 522 | B7: ='Raw Data'!H57 -> 566 | C7: ='Raw Data'!I57 -> 787 | D7: ='Raw Data'!J57 -> 888 | E7: ='Raw Data'!K57 -> 680 | F7: ='Raw Data'!L57 -> 771 | G7: 779.6666667 | H7: F
A8: 534 | B8: ='Raw Data'!H68 -> 208 | C8: ='Raw Data'!I68 -> 189 | D8: ='Raw Data'!J68 -> 55 | E8: ='Raw Data'!K68 -> 55 | F8: ='Raw Data'!L68 -> 187 | G8: 99 | H8: F
A9: 528 | B9: ='Raw Data'!H79 -> 629 | C9: ='Raw Data'!I79 -> 350 | D9: ='Raw Data'!J79 -> 524 | E9: ='Raw Data'!K79 -> 761 | F9: ='Raw Data'!L79 -> 592 | G9: 625.6666667 | H9: F
A10: 578 | B10: ='Raw Data'!H90 -> 168 | C10: ='Raw Data'!I90 -> 410 | D10: ='Raw Data'!J90 -> 419 | E10: ='Raw Data'!K90 -> 495 | F10: ='Raw Data'!L90 -> 439 | G10: 451 | H10: F
A11: 533 | B11: ='Raw Data'!H101 -> 163 | C11: ='Raw Data'!I101 -> 292 | D11: ='Raw Data'!J101 -> 192 | E11: ='Raw Data'!K101 -> 302 | F11: ='Raw Data'!L101 -> 530 | G11: 341.3333333 | H11: F
A12: 527 | B12: ='Raw Data'!H112 -> 205 | C12: ='Raw Data'!I112 -> 460 | D12: ='Raw Data'!J112 -> 173 | E12: ='Raw Data'!K112 -> 238 | F12: ='Raw Data'!L112 -> 377 | G12: 262.6666667 | H12: F
A13: 63 | B13: ='Raw Data'!H123 -> 593 | C13: ='Raw Data'!I123 -> 99 | D13: ='Raw Data'!J123 -> 126 | E13: ='Raw Data'!K123 -> 272 | F13: ='Raw Data'!L123 -> 251 | G13: 216.3333333 | H13: F
A14: 64 | B14: ='Raw Data'!H134 -> 231 | C14: ='Raw Data'!I134 -> 173 | D14: ='Raw Data'!J134 -> 395 | E14: ='Raw Data'!K134 -> 486 | F14: ='Raw Data'!L134 -> 470 | G14: 450.3333333 | H14: F
A15: 909 | B15: ='Raw Data'!H145 -> 818 | C15: ='Raw Data'!I145 -> 215 | D15: ='Raw Data'!J145 -> 181 | E15: ='Raw Data'!K145 -> 264 | F15: ='Raw Data'!L145 -> 332 | G15: 259 | H15: F
A16: 162 | B16: ='Raw Data'!H156 -> 1361 | C16: ='Raw Data'!I156 -> 161 | D16: ='Raw Data'!J156 -> 754 | E16: ='Raw Data'!K156 -> 208 | F16: ='Raw Data'!L156 -> 184 | G16: 382 | H16: F
A17: 294 | B17: ='Raw Data'!H167 -> 485 | C17: ='Raw Data'!I167 -> 361 | D17: ='Raw Data'!J167 -> 483 | E17: ='Raw Data'!K167 -> 440 | F17: ='Raw Data'!L167 -> 613 | G17: 512 | H17: F
A18: 351 | B18: ='Raw Data'!H178 -> 481 | C18: ='Raw Data'!I178 -> 316 | D18: ='Raw Data'!J178 -> 523 | E18: ='Raw Data'!K178 -> 488 | F18: ='Raw Data'!L178 -> 757 | G18: 589.3333333 | H18: F
A19: 513 | B19: ='Raw Data'!H189 -> 358 | C19: ='Raw Data'!I189 -> 268 | D19: ='Raw Data'!J189 -> 184 | E19: ='Raw Data'!K189 -> 273 | F19: ='Raw Data'!L189 -> 326 | G19: 261 | H19: M
A20: 530 | B20: ='Raw Data'!H200 -> 763 | C20: ='Raw Data'!I200 -> 596 | D20: ='Raw Data'!J200 -> 252 | E20: ='Raw Data'!K200 -> 682 | F20: ='Raw Data'!L200 -> 501 | G20: 478.3333333 | H20: M
A21: 515 | B21: ='Raw Data'!H211 -> 363 | C21: ='Raw Data'!I211 -> 292 | D21: ='Raw Data'!J211 -> 550 | E21: ='Raw Data'!K211 -> 508 | F21: ='Raw Data'!L211 -> 807 | G21: 621.6666667 | H21: M
A22: 531 | B22: ='Raw Data'!H222 -> 114 | C22: ='Raw Data'!I222 -> 86 | D22: ='Raw Data'!J222 -> 201 | E22: ='Raw Data'!K222 -> 227 | F22: ='Raw Data'!L222 -> 371 | G22: 266.3333333 | H22: M
A23: 500 | B23: ='Raw Data'!H233 -> 439 | C23: ='Raw Data'!I233 -> 881 | D23: ='Raw Data'!J233 -> 562 | E23: ='Raw Data'!K233 -> 707 | F23: ='Raw Data'!L233 -> 750 | G23: 673 | H23: M
A24: 498 | B24: ='Raw Data'!H244 -> 243 | C24: ='Raw Data'!I244 -> 284 | D24: ='Raw Data'!J244 -> 224 | E24: ='Raw Data'!K244 -> 158 | F24: ='Raw Data'!L244 -> 620 | G24: 334 | H24: M
A25: 157 | B25: ='Raw Data'!H255 -> 99 | C25: ='Raw Data'!I255 -> 246 | D25: ='Raw Data'!J255 -> 79 | E25: ='Raw Data'!K255 -> 139 | F25: ='Raw Data'!L255 -> 168 | G25: 128.6666667 | H25: M
A26: 514 | B26: ='Raw Data'!H266 -> 386 | C26: ='Raw Data'!I266 -> 218 | D26: ='Raw Data'!J266 -> 133 | E26: ='Raw Data'!K266 -> 260 | F26: ='Raw Data'!L266 -> 236 | G26: 209.6666667 | H26: M
A27: 532 | B27: ='Raw Data'!H277 -> 315 | C27: ='Raw Data'!I277 -> 114 | D27: ='Raw Data'!J277 -> 205 | E27: ='Raw Data'!K277 -> 159 | F27: ='Raw Data'!L277 -> 220 | G27: 194.6666667 | H27: M
A28: 516 | B28: ='Raw Data'!H288 -> 465 | C28: ='Raw Data'!I288 -> 445 | D28: ='Raw Data'!J288 -> 377 | E28: ='Raw Data'!K288 -> 472 | F28: ='Raw Data'!L288 -> 470 | G28: 439.6666667 | H28: M
A29: 158 | B29: ='Raw Data'!H299 -> 446 | C29: ='Raw Data'!I299 -> 228 | D29: ='Raw Data'!J299 -> 118 | E29: ='Raw Data'!K299 -> 186 | F29: ='Raw Data'!L299 -> 296 | G29: 200 | H29: M
A30: 499 | B30: ='Raw Data'!H310 -> 521 | C30: ='Raw Data'!I310 -> 528 | D30: ='Raw Data'!J310 -> 461 | E30: ='Raw Data'!K310 -> 425 | F30: ='Raw Data'!L310 -> 471 | G30: 452.3333333 | H30: M
A31: 156 | B31: ='Raw Data'!H321 -> 499 | C31: ='Raw Data'!I321 -> 317 | D31: ='Raw Data'!J321 -> 78 | E31: ='Raw Data'!K321 -> 221 | F31: ='Raw Data'!L321 -> 466 | G31: 255 | H31: M
A32: 59 | B32: ='Raw Data'!H332 -> 116 | C32: ='Raw Data'!I332 -> 363 | D32: ='Raw Data'!J332 -> 418 | E32: ='Raw Data'!K332 -> 453 | F32: ='Raw Data'!L332 -> 363 | G32: 411.3333333 | H32: M
A33: 61 | B33: ='Raw Data'!H343 -> 728 | C33: ='Raw Data'!I343 -> 778 | D33: ='Raw Data'!J343 -> 656 | E33: ='Raw Data'!K343 -> 851 | F33: ='Raw Data'!L343 -> 805 | G33: 770.6666667 | H33: M
A34: 62 | B34: ='Raw Data'!H354 -> 120 | C34: ='Raw Data'!I354 -> 101 | D34: ='Raw Data'!J354 -> 335 | E34: ='Raw Data'!K354 -> 370 | F34: ='Raw Data'!L354 -> 287 | G34: 330.6666667 | H34: M
A35: 212 | B35: ='Raw Data'!H365 -> 427 | C35: ='Raw Data'!I365 -> 179 | D35: ='Raw Data'!J365 -> 287 | E35: ='Raw Data'!K365 -> 350 | F35: ='Raw Data'!L365 -> 408 | G35: 348.3333333 | H35: M
A36: 213 | B36: ='Raw Data'!H376 -> 242 | C36: ='Raw Data'!I376 -> 198 | D36: ='Raw Data'!J376 -> 116 | E36: ='Raw Data'!K376 -> 266 | F36: ='Raw Data'!L376 -> 620 | G36: 334 | H36: M
A37: 221 | B37: ='Raw Data'!H387 -> 401 | C37: ='Raw Data'!I387 -> 482 | D37: ='Raw Data'!J387 -> 510 | E37: ='Raw Data'!K387 -> 629 | F37: ='Raw Data'!L387 -> 636 | G37: 591.6666667 | H37: M
A38: BM2 | B38: OF | C38: SHAM | D38: T1 | E38: T2 | F38: T3 | G38: Total
A39: 496 | B39: ='Raw Data'!H3 -> 443 | C39: ='Raw Data'!I3 -> 514 | D39: ='Raw Data'!J3 -> 476 | E39: ='Raw Data'!K3 -> 394 | F39: ='Raw Data'!L3 -> 291 | G39: =AVERAGE(D39:F39) -> 387 | H39: F
A40: 529 | B40: ='Raw Data'!H14 -> 621 | C40: ='Raw Data'!I14 -> 1648 | D40: ='Raw Data'!J14 -> 427 | E40: ='Raw Data'!K14 -> 266 | F40: ='Raw Data'!L14 -> 184 | G40: =AVERAGE(D40:F40) -> 292.3333333 | H40: F
A41: 521 | B41: ='Raw Data'!H25 -> 1081 | C41: ='Raw Data'!I25 -> 602 | D41: ='Raw Data'!J25 -> 581 | E41: ='Raw Data'!K25 -> 1142 | F41: ='Raw Data'!L25 -> 686 | G41: 803 | H41: F
A42: 524 | B42: ='Raw Data'!H36 -> 403 | C42: ='Raw Data'!I36 -> 135 | D42: ='Raw Data'!J36 -> 428 | E42: ='Raw Data'!K36 -> 354 | F42: ='Raw Data'!L36 -> 317 | G42: 366.3333333 | H42: F
A43: 517 | B43: ='Raw Data'!H47 -> 746 | C43: ='Raw Data'!I47 -> 512 | D43: ='Raw Data'!J47 -> 580 | E43: ='Raw Data'!K47 -> 873 | F43: ='Raw Data'!L47 -> 589 | G43: 680.6666667 | H43: F
A44: 522 | B44: ='Raw Data'!H58 -> 313 | C44: ='Raw Data'!I58 -> 545 | D44: ='Raw Data'!J58 -> 295 | E44: ='Raw Data'!K58 -> 277 | F44: ='Raw Data'!L58 -> 297 | G44: 289.6666667 | H44: F
A45: 534 | B45: ='Raw Data'!H69 -> 190 | C45: ='Raw Data'!I69 -> 814 | D45: ='Raw Data'!J69 -> 449 | E45: ='Raw Data'!K69 -> 519 | F45: ='Raw Data'!L69 -> 540 | G45: 502.6666667 | H45: F
A46: 528 | B46: ='Raw Data'!H80 -> 466 | C46: ='Raw Data'!I80 -> 81 | D46: ='Raw Data'!J80 -> 169 | E46: ='Raw Data'!K80 -> 227 | F46: ='Raw Data'!L80 -> 116 | G46: 170.6666667 | H46: F
A47: 578 | B47: ='Raw Data'!H91 -> 302 | C47: ='Raw Data'!I91 -> 456 | D47: ='Raw Data'!J91 -> 561 | E47: ='Raw Data'!K91 -> 723 | F47: ='Raw Data'!L91 -> 359 | G47: 547.6666667 | H47: F
A48: 533 | B48: ='Raw Data'!H102 -> 889 | C48: ='Raw Data'!I102 -> 731 | D48: ='Raw Data'!J102 -> 753 | E48: ='Raw Data'!K102 -> 752 | F48: ='Raw Data'!L102 -> 609 | G48: 704.6666667 | H48: F
A49: 527 | B49: ='Raw Data'!H113 -> 1237 | C49: ='Raw Data'!I113 -> 1467 | D49: ='Raw Data'!J113 -> 1150 | E49: ='Raw Data'!K113 -> 719 | F49: ='Raw Data'!L113 -> 1427 | G49: 1098.666667 | H49: F
A50: 63 | B50: ='Raw Data'!H124 -> 110 | C50: ='Raw Data'!I124 -> 20 | D50: ='Raw Data'!J124 -> 633 | E50: ='Raw Data'!K124 -> 354 | F50: ='Raw Data'!L124 -> 616 | G50: 534.3333333 | H50: F
A51: 64 | B51: ='Raw Data'!H135 -> 446 | C51: ='Raw Data'!I135 -> 109 | D51: ='Raw Data'!J135 -> 269 | E51: ='Raw Data'!K135 -> 191 | F51: ='Raw Data'!L135 -> 241 | G51: 233.6666667 | H51: F
A52: 909 | B52: ='Raw Data'!H146 -> 389 | C52: ='Raw Data'!I146 -> 994 | D52: ='Raw Data'!J146 -> 739 | E52: ='Raw Data'!K146 -> 1491 | F52: ='Raw Data'!L146 -> 1099 | G52: 1109.666667 | H52: F
A53: 162 | B53: ='Raw Data'!H157 -> 97 | C53: ='Raw Data'!I157 -> 9 | D53: ='Raw Data'!J157 -> 281 | E53: ='Raw Data'!K157 -> 269 | F53: ='Raw Data'!L157 -> 369 | G53: 306.3333333 | H53: F
A54: 294 | H54: F
A55: 351 | B55: ='Raw Data'!H179 -> 800 | C55: ='Raw Data'!I179 -> 300 | D55: ='Raw Data'!J179 -> 603 | E55: ='Raw Data'!K179 -> 586 | F55: ='Raw Data'!L179 -> 232 | G55: 473.6666667 | H55: F
A56: 513 | B56: ='Raw Data'!H190 -> 286 | C56: ='Raw Data'!I190 -> 532 | D56: ='Raw Data'!J190 -> 539 | E56: ='Raw Data'!K190 -> 395 | F56: ='Raw Data'!L190 -> 281 | G56: 405 | H56: M
A57: 530 | B57: ='Raw Data'!H201 -> 414 | C57: ='Raw Data'!I201 -> 123 | D57: ='Raw Data'!J201 -> 228 | E57: ='Raw Data'!K201 -> 342 | F57: ='Raw Data'!L201 -> 211 | G57: 260.3333333 | H57: M
A58: 515 | B58: ='Raw Data'!H212 -> 396 | C58: ='Raw Data'!I212 -> 258 | D58: ='Raw Data'!J212 -> 347 | E58: ='Raw Data'!K212 -> 173 | F58: ='Raw Data'!L212 -> 260 | G58: 260 | H58: M
A59: 531 | B59: ='Raw Data'!H223 -> 314 | C59: ='Raw Data'!I223 -> 216 | D59: ='Raw Data'!J223 -> 390 | E59: ='Raw Data'!K223 -> 214 | F59: ='Raw Data'!L223 -> 282 | G59: 295.3333333 | H59: M
A60: 500 | B60: ='Raw Data'!H234 -> 707 | C60: ='Raw Data'!I234 -> 369 | D60: ='Raw Data'!J234 -> 671 | E60: ='Raw Data'!K234 -> 386 | F60: ='Raw Data'!L234 -> 367 | G60: 474.6666667 | H60: M
A61: 498 | B61: ='Raw Data'!H245 -> 2264 | C61: ='Raw Data'!I245 -> 1854 | D61: ='Raw Data'!J245 -> 663 | E61: ='Raw Data'!K245 -> 1372 | F61: ='Raw Data'!L245 -> 729 | G61: 921.3333333 | H61: M
A62: 157 | B62: ='Raw Data'!H256 -> 2694 | C62: ='Raw Data'!I256 -> 1064 | D62: ='Raw Data'!J256 -> 1020 | E62: ='Raw Data'!K256 -> 1398 | F62: ='Raw Data'!L256 -> 1649 | G62: 1355.666667 | H62: M
A63: 514 | B63: ='Raw Data'!H267 -> 438 | C63: ='Raw Data'!I267 -> 715 | D63: ='Raw Data'!J267 -> 951 | E63: ='Raw Data'!K267 -> 813 | F63: ='Raw Data'!L267 -> 565 | G63: 776.3333333 | H63: M
A64: 532 | B64: ='Raw Data'!H278 -> 807 | C64: ='Raw Data'!I278 -> 754 | D64: ='Raw Data'!J278 -> 525 | E64: ='Raw Data'!K278 -> 718 | F64: ='Raw Data'!L278 -> 471 | G64: 571.3333333 | H64: M
A65: 516 | B65: ='Raw Data'!H289 -> 440 | C65: ='Raw Data'!I289 -> 620 | D65: ='Raw Data'!J289 -> 605 | E65: ='Raw Data'!K289 -> 501 | F65: ='Raw Data'!L289 -> 529 | G65: 545 | H65: M
A66: 158 | B66: ='Raw Data'!H300 -> 1198 | C66: ='Raw Data'!I300 -> 1189 | D66: ='Raw Data'!J300 -> 1484 | E66: ='Raw Data'!K300 -> 1216 | F66: ='Raw Data'!L300 -> 1552 | G66: 1417.333333 | H66: M
A67: 499 | B67: ='Raw Data'!H311 -> 446 | C67: ='Raw Data'!I311 -> 63 | D67: ='Raw Data'!J311 -> 608 | E67: ='Raw Data'!K311 -> 663 | F67: ='Raw Data'!L311 -> 425 | G67: 565.3333333 | H67: M
A68: 156 | B68: ='Raw Data'!H322 -> 317 | C68: ='Raw Data'!I322 -> 827 | D68: ='Raw Data'!J322 -> 845 | E68: ='Raw Data'!K322 -> 871 | F68: ='Raw Data'!L322 -> 840 | G68: 852 | H68: M
A69: 59 | B69: ='Raw Data'!H333 -> 882 | C69: ='Raw Data'!I333 -> 601 | D69: ='Raw Data'!J333 -> 679 | E69: ='Raw Data'!K333 -> 758 | F69: ='Raw Data'!L333 -> 899 | G69: 778.6666667 | H69: M
A70: 61 | B70: ='Raw Data'!H344 -> 368 | C70: ='Raw Data'!I344 -> 500 | D70: ='Raw Data'!J344 -> 562 | E70: ='Raw Data'!K344 -> 446 | F70: ='Raw Data'!L344 -> 310 | G70: 439.3333333 | H70: M
A71: 62 | B71: ='Raw Data'!H355 -> 286 | C71: ='Raw Data'!I355 -> 1821 | D71: ='Raw Data'!J355 -> 974 | E71: ='Raw Data'!K355 -> 833 | F71: ='Raw Data'!L355 -> 642 | G71: 816.3333333 | H71: M
A72: 212 | B72: ='Raw Data'!H366 -> 440 | C72: ='Raw Data'!I366 -> 15 | D72: ='Raw Data'!J366 -> 89 | E72: ='Raw Data'!K366 -> 81 | F72: ='Raw Data'!L366 -> 94 | G72: 88 | H72: M
A73: 213 | B73: ='Raw Data'!H377 -> 483 | C73: ='Raw Data'!I377 -> 511 | D73: ='Raw Data'!J377 -> 968 | E73: ='Raw Data'!K377 -> 1068 | F73: ='Raw Data'!L377 -> 868 | G73: 968 | H73: M
A74: 221 | B74: ='Raw Data'!H388 -> 737 | C74: ='Raw Data'!I388 -> 640 | D74: ='Raw Data'!J388 -> 594 | E74: ='Raw Data'!K388 -> 328 | F74: ='Raw Data'!L388 -> 524 | G74: 482 | H74: M
A75: BM3 | B75: OF | C75: SHAM | D75: T1 | E75: T2 | F75: T3 | G75: Total
A76: 496 | B76: ='Raw Data'!H4 -> 442 | C76: ='Raw Data'!I4 -> 522 | D76: ='Raw Data'!J4 -> 430 | E76: ='Raw Data'!K4 -> 507 | F76: ='Raw Data'!L4 -> 473 | G76: =AVERAGE(D76:F76) -> 470 | H76: F
A77: 529 | B77: ='Raw Data'!H15 -> 122 | C77: ='Raw Data'!I15 -> 110 | D77: ='Raw Data'!J15 -> 20 | E77: ='Raw Data'!K15 -> 156 | F77: ='Raw Data'!L15 -> 315 | G77: =AVERAGE(D77:F77) -> 163.6666667 | H77: F
A78: 521 | B78: ='Raw Data'!H26 -> 251 | C78: ='Raw Data'!I26 -> 231 | D78: ='Raw Data'!J26 -> 385 | E78: ='Raw Data'!K26 -> 251 | F78: ='Raw Data'!L26 -> 368 | G78: 334.6666667 | H78: F
A79: 524 | B79: ='Raw Data'!H37 -> 355 | C79: ='Raw Data'!I37 -> 155 | D79: ='Raw Data'!J37 -> 54 | E79: ='Raw Data'!K37 -> 225 | F79: ='Raw Data'!L37 -> 38 | G79: 105.6666667 | H79: F
A80: 517 | B80: ='Raw Data'!H48 -> 356 | C80: ='Raw Data'!I48 -> 463 | D80: ='Raw Data'!J48 -> 380 | E80: ='Raw Data'!K48 -> 732 | F80: ='Raw Data'!L48 -> 526 | G80: 546 | H80: F
A81: 522 | B81: ='Raw Data'!H59 -> 375 | C81: ='Raw Data'!I59 -> 509 | D81: ='Raw Data'!J59 -> 938 | E81: ='Raw Data'!K59 -> 1043 | F81: ='Raw Data'!L59 -> 667 | G81: 882.6666667 | H81: F
A82: 534 | B82: ='Raw Data'!H70 -> 214 | C82: ='Raw Data'!I70 -> 112 | D82: ='Raw Data'!J70 -> 60 | E82: ='Raw Data'!K70 -> 0 | F82: ='Raw Data'!L70 -> 100 | G82: 53.33333333 | H82: F
A83: 528 | B83: ='Raw Data'!H81 -> 302 | C83: ='Raw Data'!I81 -> 290 | D83: ='Raw Data'!J81 -> 512 | E83: ='Raw Data'!K81 -> 759 | F83: ='Raw Data'!L81 -> 768 | G83: 679.6666667 | H83: F
A84: 578 | B84: ='Raw Data'!H92 -> 211 | C84: ='Raw Data'!I92 -> 264 | D84: ='Raw Data'!J92 -> 245 | E84: ='Raw Data'!K92 -> 445 | F84: ='Raw Data'!L92 -> 460 | G84: 383.3333333 | H84: F
A85: 533 | B85: ='Raw Data'!H103 -> 170 | C85: ='Raw Data'!I103 -> 188 | D85: ='Raw Data'!J103 -> 200 | E85: ='Raw Data'!K103 -> 291 | F85: ='Raw Data'!L103 -> 334 | G85: 275 | H85: F
A86: 527 | B86: ='Raw Data'!H114 -> 119 | C86: ='Raw Data'!I114 -> 225 | D86: ='Raw Data'!J114 -> 25 | E86: ='Raw Data'!K114 -> 183 | F86: ='Raw Data'!L114 -> 183 | G86: 130.3333333 | H86: F
A87: 63 | B87: ='Raw Data'!H125 -> 575 | C87: ='Raw Data'!I125 -> 141 | D87: ='Raw Data'!J125 -> 83 | E87: ='Raw Data'!K125 -> 488 | F87: ='Raw Data'!L125 -> 349 | G87: 306.6666667 | H87: F
A88: 64 | B88: ='Raw Data'!H136 -> 270 | C88: ='Raw Data'!I136 -> 83 | D88: ='Raw Data'!J136 -> 118 | E88: ='Raw Data'!K136 -> 403 | F88: ='Raw Data'!L136 -> 285 | G88: 268.6666667 | H88: F
A89: 909 | B89: ='Raw Data'!H147 -> 423 | C89: ='Raw Data'!I147 -> 70 | D89: ='Raw Data'!J147 -> 134 | E89: ='Raw Data'!K147 -> 198 | F89: ='Raw Data'!L147 -> 109 | G89: 147 | H89: F
A90: 162 | B90: ='Raw Data'!H158 -> 589 | C90: ='Raw Data'!I158 -> 9 | D90: ='Raw Data'!J158 -> 214 | E90: ='Raw Data'!K158 -> 31 | F90: ='Raw Data'!L158 -> 80 | G90: 108.3333333 | H90: F
A91: 294 | B91: ='Raw Data'!H169 -> 324 | C91: ='Raw Data'!I169 -> 322 | D91: ='Raw Data'!J169 -> 323 | E91: ='Raw Data'!K169 -> 293 | F91: ='Raw Data'!L169 -> 522 | G91: 379.3333333 | H91: F
A92: 351 | B92: ='Raw Data'!H180 -> 290 | C92: ='Raw Data'!I180 -> 273 | D92: ='Raw Data'!J180 -> 245 | E92: ='Raw Data'!K180 -> 282 | F92: ='Raw Data'!L180 -> 448 | G92: 325 | H92: F
A93: 513 | B93: ='Raw Data'!H191 -> 177 | C93: ='Raw Data'!I191 -> 416 | D93: ='Raw Data'!J191 -> 339 | E93: ='Raw Data'!K191 -> 757 | F93: ='Raw Data'!L191 -> 508 | G93: 534.6666667 | H93: M
A94: 530 | B94: ='Raw Data'!H202 -> 571 | C94: ='Raw Data'!I202 -> 213 | D94: ='Raw Data'!J202 -> 75 | E94: ='Raw Data'!K202 -> 247 | F94: ='Raw Data'!L202 -> 255 | G94: 192.3333333 | H94: M
A95: 515 | B95: ='Raw Data'!H213 -> 164 | C95: ='Raw Data'!I213 -> 110 | D95: ='Raw Data'!J213 -> 477 | E95: ='Raw Data'!K213 -> 410 | F95: ='Raw Data'!L213 -> 483 | G95: 456.6666667 | H95: M
A96: 531 | B96: ='Raw Data'!H224 -> 181 | C96: ='Raw Data'!I224 -> 161 | D96: ='Raw Data'!J224 -> 379 | E96: ='Raw Data'!K224 -> 444 | F96: ='Raw Data'!L224 -> 360 | G96: 394.3333333 | H96: M
A97: 500 | B97: ='Raw Data'!H235 -> 142 | C97: ='Raw Data'!I235 -> 217 | D97: ='Raw Data'!J235 -> 255 | E97: ='Raw Data'!K235 -> 526 | F97: ='Raw Data'!L235 -> 519 | G97: 433.3333333 | H97: M
A98: 498 | B98: ='Raw Data'!H246 -> 291 | C98: ='Raw Data'!I246 -> 108 | D98: ='Raw Data'!J246 -> 87 | E98: ='Raw Data'!K246 -> 114 | F98: ='Raw Data'!L246 -> 444 | G98: 215 | H98: M
A99: 157 | B99: ='Raw Data'!H257 -> 242 | C99: ='Raw Data'!I257 -> 186 | D99: ='Raw Data'!J257 -> 106 | E99: ='Raw Data'!K257 -> 133 | F99: ='Raw Data'!L257 -> 233 | G99: 157.3333333 | H99: M
A100: 514 | B100: ='Raw Data'!H268 -> 179 | C100: ='Raw Data'!I268 -> 222 | D100: ='Raw Data'!J268 -> 231 | E100: ='Raw Data'!K268 -> 160 | F100: ='Raw Data'!L268 -> 107 | G100: 166 | H100: M
A101: 532 | B101: ='Raw Data'!H279 -> 309 | C101: ='Raw Data'!I279 -> 332 | D101: ='Raw Data'!J279 -> 296 | E101: ='Raw Data'!K279 -> 221 | F101: ='Raw Data'!L279 -> 411 | G101: 309.3333333 | H101: M
A102: 516 | B102: ='Raw Data'!H290 -> 414 | C102: ='Raw Data'!I290 -> 341 | D102: ='Raw Data'!J290 -> 203 | E102: ='Raw Data'!K290 -> 315 | F102: ='Raw Data'!L290 -> 308 | G102: 275.3333333 | H102: M
A103: 158 | B103: ='Raw Data'!H301 -> 600 | C103: ='Raw Data'!I301 -> 330 | D103: ='Raw Data'!J301 -> 346 | E103: ='Raw Data'!K301 -> 418 | F103: ='Raw Data'!L301 -> 482 | G103: 415.3333333 | H103: M
A104: 499 | B104: ='Raw Data'!H312 -> 405 | C104: ='Raw Data'!I312 -> 224 | D104: ='Raw Data'!J312 -> 180 | E104: ='Raw Data'!K312 -> 277 | F104: ='Raw Data'!L312 -> 287 | G104: 248 | H104: M
A105: 156 | B105: ='Raw Data'!H323 -> 368 | C105: ='Raw Data'!I323 -> 56 | D105: ='Raw Data'!J323 -> 24 | E105: ='Raw Data'!K323 -> 94 | F105: ='Raw Data'!L323 -> 231 | G105: 116.3333333 | H105: M
A106: 59 | B106: ='Raw Data'!H334 -> 315 | C106: ='Raw Data'!I334 -> 171 | D106: ='Raw Data'!J334 -> 349 | E106: ='Raw Data'!K334 -> 334 | F106: ='Raw Data'!L334 -> 316 | G106: 333 | H106: M
A107: 61 | B107: ='Raw Data'!H345 -> 389 | C107: ='Raw Data'!I345 -> 242 | D107: ='Raw Data'!J345 -> 469 | E107: ='Raw Data'!K345 -> 560 | F107: ='Raw Data'!L345 -> 663 | G107: 564 | H107: M
A108: 62 | B108: ='Raw Data'!H356 -> 158 | C108: ='Raw Data'!I356 -> 394 | D108: ='Raw Data'!J356 -> 238 | E108: ='Raw Data'!K356 -> 551 | F108: ='Raw Data'!L356 -> 441 | G108: 410 | H108: M
A109: 212 | B109: ='Raw Data'!H367 -> 431 | C109: ='Raw Data'!I367 -> 200 | D109: ='Raw Data'!J367 -> 191 | E109: ='Raw Data'!K367 -> 693 | F109: ='Raw Data'!L367 -> 459 | G109: 447.6666667 | H109: M
A110: 213 | B110: ='Raw Data'!H378 -> 397 | C110: ='Raw Data'!I378 -> 129 | D110: ='Raw Data'!J378 -> 17 | E110: ='Raw Data'!K378 -> 258 | F110: ='Raw Data'!L378 -> 234 | G110: 169.6666667 | H110: M
A111: 221 | B111: ='Raw Data'!H389 -> 168 | C111: ='Raw Data'!I389 -> 231 | D111: ='Raw Data'!J389 -> 367 | E111: ='Raw Data'!K389 -> 422 | F111: ='Raw Data'!L389 -> 424 | G111: 404.3333333 | H111: M
A112: BM4 | B112: OF | C112: SHAM | D112: T1 | E112: T2 | F112: T3 | G112: Total
A113: 496 | H113: F
A114: 529 | H114: F
A115: 521 | H115: F
A116: 524 | H116: F
A117: 517 | H117: F
A118: 522 | H118: F
A119: 534 | H119: F
A120: 528 | H120: F
A121: 578 | H121: F
A122: 533 | H122: F
A123: 527 | H123: F
A130: 513 | H130: M
A131: 530 | H131: M
A132: 515 | H132: M
A133: 531 | H133: M
A134: 500 | H134: M
A135: 498 | H135: M
A136: 157 | H136: M
A137: 514 | H137: M
A138: 532 | H138: M
A139: 516 | H139: M
A140: 158 | H140: M
A141: 499 | H141: M
A142: 156 | H142: M
A149: BM5 | B149: OF | C149: SHAM | D149: T1 | E149: T2 | F149: T3 | G149: Total
A150: 496 | B150: ='Raw Data'!H6 -> 1046 | C150: ='Raw Data'!I6 -> 552 | D150: ='Raw Data'!J6 -> 711 | E150: ='Raw Data'!K6 -> 760 | F150: ='Raw Data'!L6 -> 904 | G150: =AVERAGE(D150:F150) -> 791.6666667 | H150: F
A151: 529 | B151: ='Raw Data'!H17 -> 425 | C151: ='Raw Data'!I17 -> 19 | D151: ='Raw Data'!J17 -> 303 | E151: ='Raw Data'!K17 -> 105 | F151: ='Raw Data'!L17 -> 205 | G151: =AVERAGE(D151:F151) -> 204.3333333 | H151: F
A152: 521 | B152: ='Raw Data'!H28 -> 940 | C152: ='Raw Data'!I28 -> 612 | D152: ='Raw Data'!J28 -> 554 | E152: ='Raw Data'!K28 -> 436 | F152: ='Raw Data'!L28 -> 563 | G152: 517.6666667 | H152: F
A153: 524 | B153: ='Raw Data'!H39 -> 536 | C153: ='Raw Data'!I39 -> 641 | D153: ='Raw Data'!J39 -> 1078 | E153: ='Raw Data'!K39 -> 932 | F153: ='Raw Data'!L39 -> 1212 | G153: 1074 | H153: F
A154: 517 | B154: ='Raw Data'!H50 -> 491 | C154: ='Raw Data'!I50 -> 310 | D154: ='Raw Data'!J50 -> 380 | E154: ='Raw Data'!K50 -> 121 | F154: ='Raw Data'!L50 -> 331 | G154: 277.3333333 | H154: F
A155: 522 | B155: ='Raw Data'!H61 -> 773 | C155: ='Raw Data'!I61 -> 321 | D155: ='Raw Data'!J61 -> 394 | E155: ='Raw Data'!K61 -> 311 | F155: ='Raw Data'!L61 -> 361 | G155: 355.3333333 | H155: F
A156: 534 | B156: ='Raw Data'!H72 -> 1497 | C156: ='Raw Data'!I72 -> 748 | D156: ='Raw Data'!J72 -> 1477 | E156: ='Raw Data'!K72 -> 1526 | F156: ='Raw Data'!L72 -> 960 | G156: 1321 | H156: F
A157: 528 | B157: ='Raw Data'!H83 -> 200 | C157: ='Raw Data'!I83 -> 394 | D157: ='Raw Data'!J83 -> 321 | E157: ='Raw Data'!K83 -> 157 | F157: ='Raw Data'!L83 -> 347 | G157: 275 | H157: F
A158: 578 | B158: ='Raw Data'!H94 -> 1666 | C158: ='Raw Data'!I94 -> 1037 | D158: ='Raw Data'!J94 -> 961 | E158: ='Raw Data'!K94 -> 493 | F158: ='Raw Data'!L94 -> 848 | G158: 767.3333333 | H158: F
A159: 533 | B159: ='Raw Data'!H105 -> 1104 | C159: ='Raw Data'!I105 -> 1090 | D159: ='Raw Data'!J105 -> 1063 | E159: ='Raw Data'!K105 -> 865 | F159: ='Raw Data'!L105 -> 938 | G159: 955.3333333 | H159: F
A160: 527 | B160: ='Raw Data'!H116 -> 294 | C160: ='Raw Data'!I116 -> 89 | D160: ='Raw Data'!J116 -> 319 | E160: ='Raw Data'!K116 -> 218 | F160: ='Raw Data'!L116 -> 129 | G160: 222 | H160: F
A161: 63 | B161: ='Raw Data'!H127 -> 284 | C161: ='Raw Data'!I127 -> 149 | D161: ='Raw Data'!J127 -> 181 | E161: ='Raw Data'!K127 -> 286 | F161: ='Raw Data'!L127 -> 164 | G161: 210.3333333 | H161: F
A162: 64 | B162: ='Raw Data'!H138 -> 758 | C162: ='Raw Data'!I138 -> 585 | D162: ='Raw Data'!J138 -> 870 | E162: ='Raw Data'!K138 -> 656 | F162: ='Raw Data'!L138 -> 542 | G162: 689.3333333 | H162: F
A163: 909 | B163: ='Raw Data'!H149 -> 70 | C163: ='Raw Data'!I149 -> 118 | D163: ='Raw Data'!J149 -> 363 | E163: ='Raw Data'!K149 -> 35 | F163: ='Raw Data'!L149 -> 293 | G163: 230.3333333 | H163: F
A164: 162 | B164: ='Raw Data'!H160 -> 253 | C164: ='Raw Data'!I160 -> 211 | D164: ='Raw Data'!J160 -> 933 | E164: ='Raw Data'!K160 -> 757 | F164: ='Raw Data'!L160 -> 835 | G164: 841.6666667 | H164: F
A165: 294 | B165: ='Raw Data'!H171 -> 434 | C165: ='Raw Data'!I171 -> 620 | D165: ='Raw Data'!J171 -> 629 | E165: ='Raw Data'!K171 -> 483 | F165: ='Raw Data'!L171 -> 528 | G165: 546.6666667 | H165: F
A166: 351 | B166: ='Raw Data'!H182 -> 437 | C166: ='Raw Data'!I182 -> 550 | D166: ='Raw Data'!J182 -> 446 | E166: ='Raw Data'!K182 -> 471 | F166: ='Raw Data'!L182 -> 275 | G166: 397.3333333 | H166: F
A167: 513 | B167: ='Raw Data'!H193 -> 1167 | C167: ='Raw Data'!I193 -> 536 | D167: ='Raw Data'!J193 -> 977 | E167: ='Raw Data'!K193 -> 333 | F167: ='Raw Data'!L193 -> 604 | G167: 638 | H167: M
A168: 530 | B168: ='Raw Data'!H204 -> 593 | C168: ='Raw Data'!I204 -> 1635 | D168: ='Raw Data'!J204 -> 1857 | E168: ='Raw Data'!K204 -> 1116 | F168: ='Raw Data'!L204 -> 1596 | G168: 1523 | H168: M
A169: 515 | B169: ='Raw Data'!H215 -> 749 | C169: ='Raw Data'!I215 -> 701 | D169: ='Raw Data'!J215 -> 681 | E169: ='Raw Data'!K215 -> 768 | F169: ='Raw Data'!L215 -> 570 | G169: 673 | H169: M
A170: 531 | B170: ='Raw Data'!H226 -> 1940 | C170: ='Raw Data'!I226 -> 1376 | D170: ='Raw Data'!J226 -> 1069 | E170: ='Raw Data'!K226 -> 1458 | F170: ='Raw Data'!L226 -> 948 | G170: 1158.333333 | H170: M
A171: 500 | B171: ='Raw Data'!H237 -> 578 | C171: ='Raw Data'!I237 -> 313 | D171: ='Raw Data'!J237 -> 574 | E171: ='Raw Data'!K237 -> 354 | F171: ='Raw Data'!L237 -> 378 | G171: 435.3333333 | H171: M
A172: 498 | B172: ='Raw Data'!H248 -> 227 | C172: ='Raw Data'!I248 -> 68 | D172: ='Raw Data'!J248 -> 1119 | E172: ='Raw Data'!K248 -> 462 | F172: ='Raw Data'!L248 -> 211 | G172: 597.3333333 | H172: M
A173: 157 | B173: ='Raw Data'!H259 -> 230 | C173: ='Raw Data'!I259 -> 233 | D173: ='Raw Data'!J259 -> 681 | E173: ='Raw Data'!K259 -> 361 | F173: ='Raw Data'!L259 -> 250 | G173: 430.6666667 | H173: M
A174: 514 | B174: ='Raw Data'!H270 -> 960 | C174: ='Raw Data'!I270 -> 454 | D174: ='Raw Data'!J270 -> 650 | E174: ='Raw Data'!K270 -> 789 | F174: ='Raw Data'!L270 -> 822 | G174: 753.6666667 | H174: M
A175: 532 | B175: ='Raw Data'!H281 -> 326 | C175: ='Raw Data'!I281 -> 311 | D175: ='Raw Data'!J281 -> 617 | E175: ='Raw Data'!K281 -> 365 | F175: ='Raw Data'!L281 -> 660 | G175: 547.3333333 | H175: M
A176: 516 | B176: ='Raw Data'!H292 -> 431 | C176: ='Raw Data'!I292 -> 498 | D176: ='Raw Data'!J292 -> 774 | E176: ='Raw Data'!K292 -> 700 | F176: ='Raw Data'!L292 -> 753 | G176: 742.3333333 | H176: M
A177: 158 | B177: ='Raw Data'!H303 -> 307 | C177: ='Raw Data'!I303 -> 315 | D177: ='Raw Data'!J303 -> 635 | E177: ='Raw Data'!K303 -> 640 | F177: ='Raw Data'!L303 -> 267 | G177: 514 | H177: M
A178: 499 | B178: ='Raw Data'!H314 -> 860 | C178: ='Raw Data'!I314 -> 865 | D178: ='Raw Data'!J314 -> 998 | E178: ='Raw Data'!K314 -> 787 | F178: ='Raw Data'!L314 -> 884 | G178: 889.6666667 | H178: M
A179: 156 | B179: ='Raw Data'!H325 -> 247 | C179: ='Raw Data'!I325 -> 272 | D179: ='Raw Data'!J325 -> 533 | E179: ='Raw Data'!K325 -> 377 | F179: ='Raw Data'!L325 -> 120 | G179: 343.3333333 | H179: M
A180: 59 | B180: ='Raw Data'!H336 -> 397 | C180: ='Raw Data'!I336 -> 413 | D180: ='Raw Data'!J336 -> 398 | E180: ='Raw Data'!K336 -> 330 | F180: ='Raw Data'!L336 -> 239 | G180: 322.3333333 | H180: M
A181: 61 | B181: ='Raw Data'!H347 -> 567 | C181: ='Raw Data'!I347 -> 367 | D181: ='Raw Data'!J347 -> 462 | E181: ='Raw Data'!K347 -> 276 | F181: ='Raw Data'!L347 -> 137 | G181: 291.6666667 | H181: M
A182: 62 | B182: ='Raw Data'!H358 -> 1777 | C182: ='Raw Data'!I358 -> 293 | D182: ='Raw Data'!J358 -> 635 | E182: ='Raw Data'!K358 -> 710 | F182: ='Raw Data'!L358 -> 710 | G182: 685 | H182: M
A183: 212 | B183: ='Raw Data'!H369 -> 406 | C183: ='Raw Data'!I369 -> 1036 | D183: ='Raw Data'!J369 -> 888 | E183: ='Raw Data'!K369 -> 726 | F183: ='Raw Data'!L369 -> 1032 | G183: 882 | H183: M
A184: 213 | B184: ='Raw Data'!H380 -> 203 | C184: ='Raw Data'!I380 -> 557 | D184: ='Raw Data'!J380 -> 542 | E184: ='Raw Data'!K380 -> 257 | F184: ='Raw Data'!L380 -> 217 | G184: 338.6666667 | H184: M
A185: 221 | B185: ='Raw Data'!H391 -> 337 | C185: ='Raw Data'!I391 -> 479 | D185: ='Raw Data'!J391 -> 480 | E185: ='Raw Data'!K391 -> 444 | F185: ='Raw Data'!L391 -> 472 | G185: 465.3333333 | H185: M
A186: BM6 | B186: OF | C186: SHAM | D186: T1 | E186: T2 | F186: T3 | G186: Total
A187: 496 | H187: F
A188: 529 | B188: ='Raw Data'!H18 -> 1241 | C188: ='Raw Data'!I18 -> 573 | D188: ='Raw Data'!J18 -> 737 | E188: ='Raw Data'!K18 -> 1154 | F188: ='Raw Data'!L18 -> 1245 | G188: =AVERAGE(D188:F188) -> 1045.333333 | H188: F
A189: 521 | B189: ='Raw Data'!H29 -> 454 | C189: ='Raw Data'!I29 -> 740 | D189: ='Raw Data'!J29 -> 714 | E189: ='Raw Data'!K29 -> 758 | F189: ='Raw Data'!L29 -> 962 | G189: 811.3333333 | H189: F
A190: 524 | B190: ='Raw Data'!H40 -> 736 | C190: ='Raw Data'!I40 -> 1181 | D190: ='Raw Data'!J40 -> 785 | E190: ='Raw Data'!K40 -> 882 | F190: ='Raw Data'!L40 -> 629 | G190: 765.3333333 | H190: F
A191: 517 | B191: ='Raw Data'!H51 -> 497 | C191: ='Raw Data'!I51 -> 575 | D191: ='Raw Data'!J51 -> 961 | E191: ='Raw Data'!K51 -> 719 | F191: ='Raw Data'!L51 -> 628 | G191: 769.3333333 | H191: F
A192: 522 | H192: F
A193: 534 | B193: ='Raw Data'!H73 -> 799 | C193: ='Raw Data'!I73 -> 901 | D193: ='Raw Data'!J73 -> 870 | E193: ='Raw Data'!K73 -> 606 | F193: ='Raw Data'!L73 -> 1105 | G193: 860.3333333 | H193: F
A194: 528 | B194: ='Raw Data'!H84 -> 1421 | C194: ='Raw Data'!I84 -> 972 | D194: ='Raw Data'!J84 -> 1254 | E194: ='Raw Data'!K84 -> 1341 | F194: ='Raw Data'!L84 -> 1349 | G194: 1314.666667 | H194: F
A195: 578 | B195: ='Raw Data'!H95 -> 650 | C195: ='Raw Data'!I95 -> 631 | D195: ='Raw Data'!J95 -> 687 | E195: ='Raw Data'!K95 -> 752 | F195: ='Raw Data'!L95 -> 1024 | G195: 821 | H195: F
A196: 533 | B196: ='Raw Data'!H106 -> 409 | C196: ='Raw Data'!I106 -> 614 | D196: ='Raw Data'!J106 -> 748 | E196: ='Raw Data'!K106 -> 872 | F196: ='Raw Data'!L106 -> 725 | G196: 781.6666667 | H196: F
A197: 527 | B197: ='Raw Data'!H117 -> 283 | C197: ='Raw Data'!I117 -> 348 | D197: ='Raw Data'!J117 -> 355 | E197: ='Raw Data'!K117 -> 353 | F197: ='Raw Data'!L117 -> 377 | G197: 361.6666667 | H197: F
A198: 63 | B198: ='Raw Data'!H128 -> 914 | C198: ='Raw Data'!I128 -> 442 | D198: ='Raw Data'!J128 -> 901 | E198: ='Raw Data'!K128 -> 678 | F198: ='Raw Data'!L128 -> 806 | G198: 795 | H198: F
A199: 64 | B199: ='Raw Data'!H139 -> 651 | C199: ='Raw Data'!I139 -> 417 | D199: ='Raw Data'!J139 -> 477 | E199: ='Raw Data'!K139 -> 753 | F199: ='Raw Data'!L139 -> 678 | G199: 636 | H199: F
A200: 909 | B200: ='Raw Data'!H150 -> 1014 | C200: ='Raw Data'!I150 -> 488 | D200: ='Raw Data'!J150 -> 398 | E200: ='Raw Data'!K150 -> 777 | F200: ='Raw Data'!L150 -> 678 | G200: 617.6666667 | H200: F
A201: 162 | B201: ='Raw Data'!H161 -> 754 | C201: ='Raw Data'!I161 -> 985 | D201: ='Raw Data'!J161 -> 453 | E201: ='Raw Data'!K161 -> 680 | F201: ='Raw Data'!L161 -> 606 | G201: 579.6666667 | H201: F
A202: 294 | B202: ='Raw Data'!H172 -> 1047 | C202: ='Raw Data'!I172 -> 661 | D202: ='Raw Data'!J172 -> 788 | E202: ='Raw Data'!K172 -> 847 | F202: ='Raw Data'!L172 -> 817 | G202: 817.3333333 | H202: F
A203: 351 | B203: ='Raw Data'!H183 -> 995 | C203: ='Raw Data'!I183 -> 897 | D203: ='Raw Data'!J183 -> 874 | E203: ='Raw Data'!K183 -> 900 | F203: ='Raw Data'!L183 -> 1069 | G203: 947.6666667 | H203: F
A204: 513 | B204: ='Raw Data'!H194 -> 369 | C204: ='Raw Data'!I194 -> 465 | D204: ='Raw Data'!J194 -> 422 | E204: ='Raw Data'!K194 -> 659 | F204: ='Raw Data'!L194 -> 320 | G204: 467 | H204: M
A205: 530 | B205: ='Raw Data'!H205 -> 785 | C205: ='Raw Data'!I205 -> 718 | D205: ='Raw Data'!J205 -> 820 | E205: ='Raw Data'!K205 -> 912 | F205: ='Raw Data'!L205 -> 757 | G205: 829.6666667 | H205: M
A206: 515 | B206: ='Raw Data'!H216 -> 533 | C206: ='Raw Data'!I216 -> 294 | D206: ='Raw Data'!J216 -> 636 | E206: ='Raw Data'!K216 -> 771 | F206: ='Raw Data'!L216 -> 712 | G206: 706.3333333 | H206: M
A207: 531 | B207: ='Raw Data'!H227 -> 252 | C207: ='Raw Data'!I227 -> 352 | D207: ='Raw Data'!J227 -> 484 | E207: ='Raw Data'!K227 -> 484 | F207: ='Raw Data'!L227 -> 601 | G207: 523 | H207: M
A208: 500 | B208: ='Raw Data'!H238 -> 926 | C208: ='Raw Data'!I238 -> 997 | D208: ='Raw Data'!J238 -> 530 | E208: ='Raw Data'!K238 -> 773 | F208: ='Raw Data'!L238 -> 982 | G208: 761.6666667 | H208: M
A209: 498 | B209: ='Raw Data'!H249 -> 764 | C209: ='Raw Data'!I249 -> 710 | D209: ='Raw Data'!J249 -> 526 | E209: ='Raw Data'!K249 -> 609 | F209: ='Raw Data'!L249 -> 892 | G209: 675.6666667 | H209: M
A210: 157 | B210: ='Raw Data'!H260 -> 97 | C210: ='Raw Data'!I260 -> 250 | D210: ='Raw Data'!J260 -> 508 | E210: ='Raw Data'!K260 -> 350 | F210: ='Raw Data'!L260 -> 554 | G210: 470.6666667 | H210: M
A211: 514 | B211: ='Raw Data'!H271 -> 441 | C211: ='Raw Data'!I271 -> 557 | D211: ='Raw Data'!J271 -> 722 | E211: ='Raw Data'!K271 -> 497 | F211: ='Raw Data'!L271 -> 498 | G211: 572.3333333 | H211: M
A212: 532 | B212: ='Raw Data'!H282 -> 690 | C212: ='Raw Data'!I282 -> 309 | D212: ='Raw Data'!J282 -> 613 | E212: ='Raw Data'!K282 -> 679 | F212: ='Raw Data'!L282 -> 538 | G212: 610 | H212: M
... 158 more rows
